[Event "DFMM-LV 2023"]
[Site "Braunfels"]
[Date "2023.06.09"]
[Round "2.3"]
[White "Cosma, Elena-Luminita"]
[Black "Steinbacher, Claudia"]
[Result "1-0"]
[Annotator "TA"]
[ECO "D30"]
[WhiteElo "2222"]
[BlackElo "2039"]
[PlyCount "111"]
[EventDate "2023.06.09"]
[EventType "team-tourn"]
[EventCountry "GER"]
[SourceTitle "playchess.com"]
[Source "ChessBase"]
[SourceQuality "1"]
[TimeControl "40/5400+30:1800+30"]

{[%evp 15,111,54,96,95,96,95,96,98,82,54,90,63,66,60,60,42,54,44,112,78,74,80,87,63,94,85,69,56,59,62,62,56,55,55,55,52,202,110,93,-1,191,166,235,204,242,236,242,184,170,158,147,155,145,81,88,85,73,72,89,0,435,405,428,426,415,362,337,212,197,95,863,869,937,834,1211,1416,1353,1283,1972,2039,2079,1722,1463,1175,2703,1562,2943,2664,4532,2881,4574,2322,5616,4860,29985,29986,29987,29988]} 1. d4 {[%emt 0:00:06]} Nf6 {[%emt 0:00:18]} 2. Nf3 {[%emt 0:00:05]} e6 {[%emt 0:00:33]} 3. g3 {[%emt 0:00:08]} c5 {[%emt 0:02:24]} 4. Bg2 {[%emt 0:00:12]} d5 {[%emt 0:00:46]} 5. O-O {[%emt 0:00:32]} Nc6 {[%emt 0:00:10]} 6. c4 {[%emt 0:00:06]} cxd4 {[%emt 0:04:09]} 7. cxd5 {[%emt 0:04:50]} exd5 {[%emt 0:02:17]} 8. Nxd4 {[%emt 0:00:07]} Bc5 {[%emt 0:01:26]} 9. Nxc6 {[%emt 0:18:10] D30: Queen's Gambit Declined: Systems without Nc3.} bxc6 {[%emt 0:00:23]} 10. Qc2 $1 {[%emt 0:00:05] Repels Bf5} Qb6 {[%emt 0:03:47]} 11. Nc3 $1 {[%emt 0:00:07] Na4 would be deadly. White is better.} Be7 {[%emt 0:04:46]} 12. Be3 {[%emt 0:01:31]} Qa6 {[%emt 0:05:09]} 13. Na4 {[%emt 0:14:17]} O-O {[%emt 0:07:18]} 14. Rfc1 {[%emt 0:12:17] White is more active.} Bd7 {[%emt 0:00:29]} 15. Bc5 {[%emt 0:01:23]} Rfe8 {[%emt 0:00:53]} 16. e3 {[%emt 0:02:28]} Rac8 {[%emt 0:04:25] [#]} (16... Qc8 $14) 17. b4 $146 {[%emt 0:11:37]} ({Predecessor:} 17. Bf1 Qb7 18. Bxe7 Rxe7 19. Nc5 Qb6 20. Ba6 Rc7 21. Bd3 g6 22. a4 Bc8 23. a5 {½-½ Martin Luis,C (2106)-Mendoza Contreras,L (2060) Tenerife-chT Preferente 2021 (7.2)}) 17... Bg4 {[%emt 0:06:53]} 18. a3 {[%emt 0:05:11]} h6 {[%emt 0:04:55]} 19. h3 {[%emt 0:06:09]} Bh5 {[%emt 0:03:01]} 20. Bxe7 {[%emt 0:05:17]} Rxe7 {[%emt 0:00:01]} 21. Bf1 {[%emt 0:00:07]} Qb7 {[%emt 0:00:36]} 22. Nc5 {[%emt 0:00:08]} Qb6 {[%emt 0:01:28]} 23. Qa4 {[%emt 0:07:53]} Bf3 {[%emt 0:04:59]} 24. Qa6 $36 {[%emt 0:03:40][%mdl 2048] White has good play.} Qc7 {[%emt 0:01:16][%cal Oe7e3]} 25. Bg2 {[%emt 0:00:23]} Bh5 {[%emt 0:00:58]} (25... Bxg2 $14 26. Kxg2 Rb8) 26. b5 {[%emt 0:02:31]} (26. Nb3 $18) 26... Be2 $16 {[%emt 0:12:01]} 27. Bf1 {[%emt 0:00:30]} (27. a4 $1 $16) 27... Bf3 $2 {[%emt 0:00:19]} (27... Bxf1 $11 {and Black has nothing to worry.} 28. Kxf1 Rce8) 28. Nd3 {[%emt 0:02:37][%cal Rc1c6]} Rce8 {[%emt 0:02:48]} (28... Re6 $142 29. Rxc6 Rxc6 30. bxc6 Ne4) 29. Rxc6 $18 {[%emt 0:01:10]} ({Weaker is} 29. bxc6 Rxe3 30. Nf4 Rb3 $14) 29... Qb8 {[%emt 0:01:08][%cal Od5d4]} 30. Rac1 $1 {[%emt 0:00:14]} Rb7 {[%emt 0:03:15]} (30... Rxe3 $2 31. Rc8 Qb6 32. Qxb6 axb6 33. fxe3 $18) 31. Nc5 {[%emt 0:01:24]} Rb6 {[%emt 0:00:18]} 32. Rxb6 {[%emt 0:00:20]} axb6 {[%emt 0:00:03]} 33. Nb3 {[%emt 0:00:21]} Kh7 {[%emt 0:03:59][%cal Oe8e3]} 34. Nd4 {[%emt 0:00:49]} (34. Rc3 $142 $1) 34... Rxe3 $16 {[%emt 0:00:51][%cal Of3e4][%mdl 64] Deflection} 35. Nxf3 $1 {[%emt 0:00:23]} Rxf3 {[%emt 0:00:02] [#]} 36. Bg2 $1 {[%emt 0:00:08]} Rd3 {[%emt 0:01:41] [#]} 37. Qc8 {[%emt 0:00:26] Wards off Ne4} ({Better is} 37. Qa4 $1 $16 {[%cal Ra4c2] Threatens to win with Qc2.} Kh8 38. Qc2) 37... Qe5 $2 {[%emt 0:00:58][%mdl 8192]} (37... Qxc8 $11 {and Black is okay.} 38. Rxc8 Kg6) 38. Qc2 $18 {[%emt 0:00:18]} Qf5 {[%emt 0:00:52]} 39. Bf1 {[%emt 0:00:22]} Rf3 {[%emt 0:00:17][%cal Of6e4]} 40. Qxf5+ {[%emt 0:00:34][%mdl 64] Remove Defender} Rxf5 {[%emt 0:00:02][%mdl 4096] Endgame KRB-KRN} 41. Bd3 {[%emt 0:30:18]} Ne4 {[%emt 0:30:02]} 42. a4 {[%emt 0:01:04]} (42. f4 $18) 42... g6 $2 {[%emt 0:00:11][%mdl 8192]} (42... Rf3 $16 43. Bc2 g6) 43. Bxe4 {[%emt 0:00:37]} dxe4 {[%emt 0:00:02] KR-KR} 44. Rc6 {[%emt 0:00:10]} e3 {[%emt 0:01:31]} 45. fxe3 {[%emt 0:00:12]} Rf3 {[%emt 0:00:02]} 46. Rxb6 {[%emt 0:00:14]} Rxg3+ {[%emt 0:00:10]} 47. Kf2 {[%emt 0:00:04]} Rxh3 {[%emt 0:00:06]} 48. a5 {[%emt 0:00:21][%cal Ba4a5,Ba5a6,Ba6a7][%mdl 32]} Rh2+ {[%emt 0:00:43]} 49. Kf3 {[%emt 0:00:14] a6 is the strong threat.} h5 {[%emt 0:00:30]} 50. a6 {[%emt 0:00:06] a7 would kill now.} Ra2 {[%emt 0:00:12]} 51. Rb7 {[%emt 0:00:07]} h4 {[%emt 0:08:42]} 52. Kg4 {[%emt 0:00:12]} Ra4+ {[%emt 0:00:05]} 53. Kh3 {[%emt 0:00:08]} g5 {[%emt 0:00:53]} 54. a7 {[%emt 0:01:08] White wants to mate with Rc7.} Kg6 {[%emt 0:00:35]} 55. Rb6+ {[%emt 0:00:07]} Kh5 {[%emt 0:00:29]} 56. Ra6 {[%emt 0:00:07] Weighted Error Value: White=0.21 (precise) /Black=0.57} 1-0

[Event "DFMM-LV 2023"]
[Site "Braunfels"]
[Date "2023.06.09"]
[Round "2.4"]
[White "Just, Anita"]
[Black "Hess, Olena"]
[Result "0-1"]
[Annotator "TA"]
[ECO "C41"]
[WhiteElo "1910"]
[BlackElo "2078"]
[PlyCount "166"]
[EventDate "2023.06.09"]
[EventType "team-tourn"]
[EventCountry "GER"]
[SourceTitle "playchess.com"]
[Source "ChessBase"]
[SourceQuality "1"]
[TimeControl "40/5400+30:1800+30"]

{[%evp 20,166,4,0,0,0,7,-48,-52,-58,-43,-54,-20,-25,-25,-24,-24,-31,-16,-27,0,-25,-21,-42,-28,-55,-40,-57,-66,-97,-101,-98,-110,-119,-119,-120,-118,-116,-86,-91,-100,-110,-97,-191,-191,-191,-186,-195,-193,-265,-279,-286,-277,-278,-280,-287,-279,-286,-285,-253,-275,-270,-284,-277,-273,-295,-251,-312,-297,-420,-391,-429,-407,-491,-442,-544,-522,-622,-599,-758,-726,-757,-722,-1066,-1085,-849,-1045,-1066,-1064,-937,-881,-1034,-814,-1367,-1291,-2397,-2401,-12835,-12835,-12837,-12838,-12842,-12839,-12840,-12840,-12840,-12841,-12843,-12843,-12844,-12844,-12845,-12845,-12845,-12846,-12846,-12843,-12843,-12843,-12847,-12847,-12848,-12848,-12849,-12849,-12850,-12849,-27999,-27999,-27999,-27999,-27999,-27999,-27999,-27999,-27999,-27999,-27999,-27999,-27999,-27999,-27999,-27999,-27999,-27999,-27999,-27999,-27999,-27999]} 1. e4 {[%emt 0:00:04]} d6 {[%emt 0:00:09]} 2. d4 {[%emt 0:00:06]} Nf6 {[%emt 0:00:08]} 3. Nc3 {[%emt 0:00:15]} e5 {[%emt 0:00:17]} 4. Nf3 {[%emt 0:03:25]} Nbd7 {[%emt 0:00:14]} 5. Bc4 {[%emt 0:00:51]} Be7 {[%emt 0:00:09]} 6. O-O {[%emt 0:00:33]} O-O {[%emt 0:00:10]} 7. h3 {[%emt 0:01:24]} c6 {[%emt 0:00:17]} 8. dxe5 {[%emt 0:01:35]} dxe5 {[%emt 0:07:18]} 9. a4 {[%emt 0:03:55]} Qc7 {[%emt 0:00:19]} 10. Qe2 {[%emt 0:01:30]} Nc5 {[%emt 0:08:56]} 11. Bg5 {[%emt 0:11:15]} Ne6 {[%emt 0:05:09] C41: Philidor Defence.} 12. Be3 {[%emt 0:03:11]} b6 {[%emt 0:05:06] [#]} 13. Nh2 $146 {[%emt 0:05:54]} (13. Ng5 $11) ({Predecessor:} 13. Rad1 a6 14. a5 b5 15. Bb6 Qb8 16. Ba2 Nf4 17. Qe3 h6 18. Bc5 Nxg2 19. Kxg2 Bxh3+ 20. Kxh3 {1-0 Kharashkina,B (2177)-Movsesian,J (2277) RUS-ch 1L (Women) 2004 (2)}) 13... Nd4 $15 {[%emt 0:04:56] Black is slightly better.} 14. Qd1 {[%emt 0:03:35]} Rd8 {[%emt 0:03:10][%cal Od4b3]} 15. Bd3 {[%emt 0:04:37]} Bb7 {[%emt 0:06:40]} 16. Ng4 {[%emt 0:11:33]} Ne6 {[%emt 0:27:11]} 17. Nxf6+ {[%emt 0:04:49]} Bxf6 {[%emt 0:00:42]} 18. Qg4 {[%emt 0:00:56]} Bc8 {[%emt 0:05:21]} 19. Qg3 {[%emt 0:02:18]} Nf4 {[%emt 0:01:00]} 20. Bc4 {[%emt 0:05:27]} Be6 {[%emt 0:00:07]} 21. Bxe6 {[%emt 0:00:41]} Nxe6 {[%emt 0:00:13]} 22. Rfd1 {[%emt 0:04:25]} Qe7 {[%emt 0:02:12]} 23. Qg4 {[%emt 0:15:24]} Qb4 {[%emt 0:05:19]} 24. Rxd8+ {[%emt 0:06:56]} Rxd8 {[%emt 0:00:02]} 25. Rb1 {[%emt 0:00:36]} Nd4 {[%emt 0:04:58]} 26. Bg5 {[%emt 0:01:12]} Bxg5 {[%emt 0:01:42]} 27. Qxg5 {[%emt 0:00:05]} f6 {[%emt 0:00:26]} 28. Qg4 {[%emt 0:00:18]} Kh8 {[%emt 0:03:29]} ({Much weaker is} 28... Nxc2 $6 29. Qe6+ Kf8 30. Qxc6 $11) 29. Qd1 {[%emt 0:01:53]} Qc4 {[%emt 0:03:22] Black is much more active.} 30. Kh1 {[%emt 0:01:14]} h6 {[%emt 0:00:06]} 31. Qd3 {[%emt 0:01:51]} (31. Qd2 $17) 31... Qxd3 $19 {[%emt 0:01:03]} 32. cxd3 {[%emt 0:00:04][%mdl 4096] Endgame KRN-KRN} Ne6 {[%emt 0:00:06]} 33. Rd1 {[%emt 0:01:05]} Nc5 {[%emt 0:00:04][%cal Od8d4]} 34. Kg1 {[%emt 0:01:13]} (34. b4 {might work better.} Nxd3 35. Kg1) 34... Rxd3 {[%emt 0:00:26]} (34... Nxd3 35. Ne2 Rd7 36. f3 $17) 35. Rxd3 {[%emt 0:00:34]} Nxd3 {[%emt 0:00:02] KN-KN} 36. Nd1 {[%emt 0:00:14]} Kg8 {[%emt 0:01:14]} 37. Kf1 {[%emt 0:00:04]} Kf7 {[%emt 0:01:16]} 38. Ke2 {[%emt 0:00:34]} Nf4+ {[%emt 0:01:09]} 39. Kf3 {[%emt 0:00:40]} Ke7 {[%emt 0:01:39]} 40. h4 {[%emt 0:00:39]} g6 {[%emt 0:02:49]} 41. g3 {[%emt 0:30:43]} Ne6 {[%emt 0:05:32]} 42. Ke3 {[%emt 0:00:00]} Kd6 {[%emt 0:00:31]} 43. Kd2 {[%emt 0:00:00]} a5 {[%emt 0:06:25]} 44. f3 {[%emt 0:00:00]} (44. g4 {is a better defense.}) 44... Kc5 {[%emt 0:05:11]} 45. Ne3 {[%emt 0:00:00]} h5 {[%emt 0:00:35] Wards off Ng4} 46. Ng2 {[%emt 0:00:00]} Kd4 {[%emt 0:02:56]} 47. Ne1 {[%emt 0:00:00]} b5 {[%emt 0:02:52]} 48. axb5 {[%emt 0:00:00]} cxb5 {[%emt 0:00:02]} 49. Nc2+ {[%emt 0:00:00]} Kc4 {[%emt 0:01:19]} 50. Ne3+ {[%emt 0:00:00]} Kb3 {[%emt 0:00:14]} 51. Kc1 {[%emt 0:00:29]} Nd4 {[%emt 0:01:18]} 52. Nd5 {[%emt 0:00:36]} Nxf3 {[%emt 0:01:48]} 53. Nxf6 {[%emt 0:00:23]} a4 {[%emt 0:00:13] [#] Strongly threatening ...b4.} 54. Nd7 {[%emt 0:01:23]} Kc4 {[%emt 0:02:16]} 55. Kc2 {[%emt 0:01:18]} Kd4 {[%emt 0:01:44]} 56. Nf6 {[%emt 0:01:06]} b4 {[%emt 0:00:30] ...a3 is the strong threat.} 57. Nd7 {[%emt 0:01:00]} a3 {[%emt 0:02:16] [#] ( -> ...a2)} 58. bxa3 {[%emt 0:00:22]} bxa3 {[%emt 0:00:02]} ({Weaker is} 58... Kxe4 59. axb4 Kd5 60. Kd3 $11) 59. Kb3 {[%emt 0:01:24]} Kxe4 {[%emt 0:01:17]} 60. Kxa3 {[%emt 0:01:03]} Nd4 {[%emt 0:00:25]} 61. Kb2 {[%emt 0:01:16]} Ne2 {[%emt 0:00:10]} 62. Kc2 {[%emt 0:01:07]} Nxg3 {[%emt 0:00:04]} 63. Nf8 {[%emt 0:00:56]} Kf5 {[%emt 0:00:05]} 64. Kd2 {[%emt 0:00:18]} Ne4+ {[%emt 0:01:55]} 65. Ke3 {[%emt 0:00:11]} Nf6 {[%emt 0:00:05]} 66. Kf3 {[%emt 0:00:27]} e4+ {[%emt 0:00:32][%cal Be5e4,Be4e3,Be3e2][%mdl 32]} 67. Kg3 {[%emt 0:00:16]} Ng4 {[%emt 0:02:08]} 68. Nh7 {[%emt 0:00:57]} Ne5 {[%emt 0:00:33]} 69. Ng5 {[%emt 0:00:34]} e3 {[%emt 0:00:28]} 70. Nh3 {[%emt 0:00:30]} e2 {[%emt 0:01:20]} 71. Kf2 {[%emt 0:00:09]} Kg4 {[%emt 0:00:03][%csl LRh3,LRh4]} 72. Ng1 {[%emt 0:00:10]} Kxh4 {[%emt 0:00:10]} 73. Nxe2 {[%emt 0:00:09]} g5 {[%emt 0:00:42] Black mates.} 74. Kg2 {[%emt 0:00:07]} Nd3 {[%emt 0:00:38]} 75. Nd4 {[%emt 0:01:27]} g4 {[%emt 0:00:40]} 76. Ne6 {[%emt 0:01:19]} g3 {[%emt 0:00:58]} 77. Nd4 {[%emt 0:01:02]} Kg4 {[%emt 0:00:16]} 78. Nc2 {[%emt 0:00:14]} Nf4+ {[%emt 0:00:08]} 79. Kg1 {[%emt 0:00:18]} h4 {[%emt 0:00:28]} 80. Ne3+ {[%emt 0:01:06]} Kf3 {[%emt 0:00:04]} 81. Nf5 {[%emt 0:00:30]} Ne2+ {[%emt 0:00:13]} 82. Kh1 {[%emt 0:00:38]} g2+ {[%emt 0:00:05]} 83. Kh2 {[%emt 0:00:02]} g1=Q+ {[%emt 0:00:13] Weighted Error Value: White=0.60/Black=0.08 (flawless)} 0-1

[Event "DFMM-LV 2023"]
[Site "Braunfels"]
[Date "2023.06.09"]
[Round "2.5"]
[White "Trunz, Michelle"]
[Black "Daemering, Katrin"]
[Result "0-1"]
[Annotator "TA"]
[ECO "E90"]
[WhiteElo "2010"]
[BlackElo "1944"]
[PlyCount "150"]
[EventDate "2023.06.09"]
[EventType "team-tourn"]
[EventCountry "GER"]
[SourceTitle "playchess.com"]
[Source "ChessBase"]
[SourceQuality "1"]
[TimeControl "40/5400+30:1800+30"]

{[%evp 11,150,35,36,41,43,31,41,31,79,51,35,-7,-17,-131,-14,-19,1,0,-18,-18,-18,-17,48,46,50,-104,-110,-359,-353,-356,-358,-352,-355,-351,-353,-352,-346,-332,-266,-268,-262,-371,-271,-264,-270,-284,-225,-222,-137,-147,-163,-222,-227,-217,-191,-216,-114,-106,0,0,0,0,0,-190,-202,-221,-186,-186,-148,-309,-309,-309,-309,-309,-309,-309,-309,-424,-424,-424,-393,-420,-334,-29954,-29956,-29954,-29948,-29957,-29958,-29963,-29958,-29964,-29962,-29963,-29954,-5085,-4798,-1583,-1261,-2219,-2219,-29967,-29970,-29969,-1041,-29971,-29973,-29973,-29970,-29973,-29973,-29979,-29974,-29973,-29974,-29968,-29969,-5293,-972,-29971,-29972,-29979,-29980,-29991,-29989,-29989,-29990,-29992,-29981,-29981,0,-29977,-29976,-29978,-29978,-29978,-29979,-29978,-29978,-29978,-29979]} 1. d4 {[%emt 0:00:02]} Nf6 {[%emt 0:00:11]} 2. c4 {[%emt 0:00:04]} g6 {[%emt 0:00:04]} 3. Nc3 {[%emt 0:00:07]} Bg7 {[%emt 0:00:06]} 4. e4 {[%emt 0:00:03]} d6 {[%emt 0:00:05]} 5. h3 {[%emt 0:00:04]} O-O {[%emt 0:00:27]} 6. Nf3 {[%emt 0:00:03]} Nc6 {[%emt 0:00:08]} 7. Bg5 {[%emt 0:01:44] E90: King's Indian: Classical: Early deviations and 6 h3.} h6 {[%emt 0:00:40]} 8. Be3 {[%emt 0:00:07]} e5 $1 {[%emt 0:01:02]} 9. d5 {[%emt 0:00:28] White is slightly better.} Ne7 {[%emt 0:00:10]} (9... Nd4 $1 $14) 10. g4 {[%emt 0:00:35]} c6 {[%emt 0:03:08] [#]} 11. Bd3 $146 {[%emt 0:02:25]} (11. Qd2 $5 {[%cal Re3h6]}) ({Predecessor:} 11. Nd2 Ne8 12. Rg1 Kh7 13. Qc2 cxd5 14. cxd5 Nc7 15. g5 h5 16. b4 Bd7 17. b5 {1-0 Tomazini,A (2255)-Tolic,M (2072) Sentjur Ipavec Memorial 11th 2010 (2)}) 11... b5 {[%emt 0:04:40]} 12. b3 {[%emt 0:14:09] [#]} (12. cxb5 cxd5 13. g5 hxg5 14. exd5 (14. Bxg5 $2 d4 $19) 14... Nexd5 15. Nxd5 Nxd5 16. Bxg5 Nf6 $17) (12. dxc6 $11 bxc4 13. Bxc4) 12... bxc4 {[%emt 0:08:43]} ({Black should try} 12... b4 $1 $17 {[%cal Rb4c3]} 13. Ne2 cxd5 14. cxd5 Nexd5 15. exd5 e4) 13. bxc4 $11 {[%emt 0:01:22]} cxd5 {[%emt 0:03:22]} 14. cxd5 {[%emt 0:02:39]} Qa5 {[%emt 0:14:00]} 15. Qd2 {[%emt 0:01:52]} Ba6 {[%emt 1:01:14]} 16. O-O {[%emt 0:06:43]} (16. Bxh6 $2 Bxh6 17. g5 Bxd3 18. Qxd3 Nxe4 19. gxh6 Nxc3 $19) 16... Bxd3 {[%emt 0:00:00]} (16... Nxe4 $1 $11 17. Bxe4 f5 18. gxf5 gxf5 19. Bxh6 Rf7) 17. Qxd3 $14 {[%emt 0:00:05]} Rfc8 {[%emt 0:00:00]} 18. Nb5 {[%emt 0:15:43]} (18. Rac1 $14 {keeps the upper hand.}) 18... Nxe4 $17 {[%emt 0:00:00][%mdl 64] Deflection} 19. Nxa7 $2 {[%emt 0:03:53]} (19. Nd2 $17 Nxd2 20. Bxd2) 19... Nc5 $19 {[%emt 0:00:00]} (19... Qxd5 20. Qxd5 Nxd5 21. Nxc8 Rxc8 22. a4 $11) (19... Rxa7 $2 20. Qxe4 (20. Bxa7 $2 Nc3 $19) 20... Rac7 21. Bd2 $19) 20. Bxc5 {[%emt 0:00:50]} Rxc5 {[%emt 0:00:00]} 21. Nc6 {[%emt 0:01:28]} Nxc6 {[%emt 0:00:00]} 22. dxc6 {[%emt 0:00:37]} e4 {[%emt 0:00:00][%mdl 64] Discovered Attack} (22... Rxc6 $2 23. Rfc1 Rxc1+ 24. Rxc1 $19) 23. Qxe4 {[%emt 0:00:45]} Bxa1 {[%emt 0:00:00]} 24. Rxa1 {[%emt 0:00:22]} d5 {[%emt 0:00:00]} (24... Qc3 $2 25. Rd1 Rc4 26. Rd4 Rxc6 27. Rxd6 Rxd6 28. Qxa8+ Kg7 29. Kh1 $19) 25. Qf4 {[%emt 0:02:04]} Qc3 {[%emt 0:00:00] Prevents Ne5.} (25... Rxc6 $2 26. Kg2 $19) 26. Rb1 {[%emt 0:02:34]} (26. Rd1 $142 Rc4 27. Rd4) 26... Rxc6 {[%emt 0:00:00] aiming for ...Rf6.} (26... Rxa2 $2 27. Ne5 $18 (27. Rb8+ Kg7 $17) (27. Rb8+ Kg7 $17)) 27. Ne5 {[%emt 0:02:40]} Rc7 {[%emt 0:00:00] Hoping for ...Re7.} 28. Kg2 {[%emt 0:05:11]} Kg7 {[%emt 0:00:00]} (28... Rxa2 $2 29. Qf6 Ra8 30. Rd1 $19) 29. Rb6 {[%emt 0:02:27]} Rf8 {[%emt 0:00:00]} ({Worse is} 29... Rxa2 30. Qf6+ Kh7 31. Rc6 $15 (31. Nxf7 $2 {loses.} Qxf6 32. Rxf6 Kg7 $19) (31. Rb8 $2 Rxf2+ {[%mdl 64] Deflection} 32. Qxf2 Qxe5 $19) (31. Nxf7 $2 Qxf6 {[%mdl 64] Remove Defender} 32. Rxf6 Kg7 $19) (31. Rb8 $2 Rxf2+ {[%mdl 64] Deflection} 32. Qxf2 Qxe5 $19)) 30. Qf6+ {[%emt 0:13:16]} Kg8 {[%emt 0:00:00]} 31. Rb3 {[%emt 0:05:47]} (31. g5 $142 hxg5 32. Qxg5) 31... Qd4 {[%emt 0:00:09]} 32. Rf3 {[%emt 0:05:37]} Qe4 {[%emt 0:02:39]} 33. Kg3 {[%emt 0:03:23]} d4 {[%emt 0:01:17]} (33... Qb4 $19 {White must now prevent ...Qe7.} 34. Kg2 Qe7) 34. Qd6 $17 {[%emt 0:02:06]} Rfc8 {[%emt 0:03:48]} ({Black should play} 34... Rc3 $17 35. Rxc3 dxc3) 35. Nd7 $1 $11 {[%emt 0:02:32]} Qe6 {[%emt 0:00:22]} 36. Nf6+ {[%emt 0:00:21]} Kh8 {[%emt 0:00:32]} 37. Qxd4 {[%emt 0:01:06] White is on the road to losing.} (37. Qf4 $1 $11 {and White stays safe.} g5 38. Qxd4) 37... Rc4 $1 $19 {[%emt 0:00:10]} (37... Qxa2 $2 38. Ne8+ f6 39. Nxc7 $18) 38. Qd2 {[%emt 0:03:42][%cal Rd2h6]} Kg7 {[%emt 0:00:55]} 39. Kg2 {[%emt 0:00:18]} Qc6 $36 {[%emt 0:00:52][%mdl 2048] Threatens to win with ...Rc3. White is under strong pressure.} 40. Qb2 {[%emt 0:00:43]} (40. Nd5 $17 {is a better defense.} Qc5 41. Rd3) 40... Rc3 {[%emt 0:00:43]} 41. Qxc3 {[%emt 0:03:11]} Qxc3 {[%emt 0:03:14]} 42. Rxc3 {[%emt 0:01:02]} Rxc3 {[%emt 0:00:05][%mdl 4096] Endgame KR-KN} 43. Ne4 {[%emt 0:00:34]} Ra3 {[%emt 0:00:13]} 44. f3 {[%emt 0:01:27]} Rxa2+ {[%emt 0:00:52]} 45. Kg3 {[%emt 0:00:05]} Kf8 {[%emt 0:05:03]} 46. h4 {[%emt 0:01:26]} Ke7 {[%emt 0:01:19] Dodges Nf6} 47. g5 $2 {[%emt 0:01:25] [#]} (47. Nc3 $19 Ra3 48. Nb5) 47... h5 $1 {[%emt 0:00:46]} 48. Nc3 {[%emt 0:02:23]} Rc2 {[%emt 0:01:23]} 49. Nd5+ {[%emt 0:00:30]} Ke6 {[%emt 0:01:29]} 50. Nf6 {[%emt 0:00:41]} Rc4 {[%emt 0:04:38]} 51. Ne8 {[%emt 0:02:24]} Ke5 {[%emt 0:02:20]} 52. Nf6 {[%emt 0:00:25]} Rd4 {[%emt 0:01:37]} 53. Ne8 {[%emt 0:01:48]} Rd8 {[%emt 0:05:53]} 54. Nf6 {[%emt 0:00:32]} Kd4 {[%emt 0:00:55]} 55. Kf4 {[%emt 0:02:00]} Rd6 {[%emt 0:03:46] ( -> ...Rd8)} 56. Ne4 {[%emt 0:02:29]} Rd5 {[%emt 0:00:37]} 57. Nf2 {[%emt 0:03:20]} Rf5+ {[%emt 0:00:12]} 58. Kg3 {[%emt 0:00:06]} Ke3 {[%emt 0:00:39]} 59. Nd1+ {[%emt 0:00:26]} Kd2 {[%emt 0:00:51]} 60. Nf2 {[%emt 0:00:55]} Ke2 {[%emt 0:00:17]} 61. f4 {[%emt 0:01:14]} Ra5 {[%emt 0:01:24]} 62. Ne4 {[%emt 0:00:55]} Ra3+ {[%emt 0:00:26]} 63. Kg2 {[%emt 0:00:21]} Rf3 {[%emt 0:00:31]} 64. f5 {[%emt 0:02:31]} Rf4 {[%emt 0:02:14]} (64... Rxf5 $142 65. Nd6 Rf4) 65. fxg6 {[%emt 0:01:25]} fxg6 {[%emt 0:00:20]} ({Stronger than} 65... Rxe4 66. gxf7 Rf4 67. g6 $11) 66. Ng3+ {[%emt 0:02:03]} Ke3 {[%emt 0:00:11]} 67. Kh3 {[%emt 0:00:10]} Rf3 {[%emt 0:00:34]} 68. Kg2 {[%emt 0:00:36]} Rf2+ {[%emt 0:00:50]} 69. Kh3 {[%emt 0:01:09]} Kf4 {[%emt 0:00:33]} 70. Ne2+ {[%emt 0:01:02]} Ke3 $2 {[%emt 0:00:43]} (70... Ke5 {mates} 71. Ng3 Rf3 72. Kg2 Kf4 73. Ne2+ Kg4 74. Nd4 Rg3+ 75. Kf2 Kxh4 76. Nc6 Ra3 77. Kg2 Rg3+ 78. Kh2 Rc3 79. Nb4 Rb3 80. Nd5 Rb2+ 81. Kg1 Kg3 82. Nc3 Kf3 83. Kf1 h4 84. Ke1 h3 85. Nb1 h2 86. Nd2+ Kf4 87. Ke2 h1=Q 88. Kd3 Qd5+ 89. Kc3 Qxd2+ 90. Kc4 Ke5 91. Kc5 Qd5#) 71. Nc3 $2 {[%emt 0:01:17][%mdl 8192]} (71. Ng3 $11 Kf3 72. Ne4 Kxe4 73. Kg3 Rf4 74. Kg2 Ke3 75. Kg3 Rg4+ {[%mdl 64] Deflection} 76. Kh2 Kf2 77. Kh3 Rf4 78. Kh2 Rxh4#) 71... Rd2 {[%emt 0:00:23] Black mates.} 72. Na4 {[%emt 0:01:13]} Kf4 {[%emt 0:00:15]} 73. Nc5 {[%emt 0:00:09]} Rd6 {[%emt 0:01:01]} 74. Kg2 {[%emt 0:01:30]} Kg4 {[%emt 0:00:03]} 75. Ne4 {[%emt 0:00:08]} Ra6 {[%emt 0:00:25] Weighted Error Value: White=0.51/Black=0.31} 0-1